[Event "Titled Tuesday Blitz January 17 Early 2023"]
[White "Erzhanov, Arman"]
[Black "Yuan, Qingyu"]
[WhiteFideId "4138821"]
[BlackFideId "8609772"]
[WhiteElo "2228"]
[BlackElo "2373"]
[Result "1-0"]
[Round "05"]
[TimeControl "180+2"]
[Date "2023.01.17"]
[WhiteClock "0:00:07"]
[BlackClock "0:00:02"]

1. e4 {[%clk 0:02:58]}  e5 {[%clk 0:03:00]} 2. Nf3 {[%clk 0:02:57]}  Nc6 {[%clk 0:03:00]} 3. Bb5 {[%clk 0:02:57]}  Nf6 {[%clk 0:03:01]} 4. O-O {[%clk 0:02:56]}  Nxe4 {[%clk 0:03:01]} 5. Re1 {[%clk 0:02:56]}  Nd6 {[%clk 0:03:01]} 6. Nxe5 {[%clk 0:02:56]}  Be7 {[%clk 0:03:01]} 7. Bf1 {[%clk 0:02:57]}  Nxe5 {[%clk 0:03:01]} 8. Rxe5 {[%clk 0:02:56]}  O-O {[%clk 0:03:02]} 9. d4 {[%clk 0:02:56]}  Bf6 {[%clk 0:03:03]} 10. Re1 {[%clk 0:02:55]}  Re8 {[%clk 0:03:03]} 11. Rxe8+ {[%clk 0:02:54]}  Nxe8 {[%clk 0:03:02]} 12. c3 {[%clk 0:02:53]}  d5 {[%clk 0:03:02]} 13. Bf4 {[%clk 0:02:53]}  c6 {[%clk 0:02:50]} 14. Bd3 {[%clk 0:02:53]}  g6 {[%clk 0:02:47]} 15. Nd2 {[%clk 0:02:53]}  Ng7 {[%clk 0:02:46]} 16. h3 {[%clk 0:02:51]}  Bf5 {[%clk 0:02:46]} 17. Nf3 {[%clk 0:02:50]}  Qb6 {[%clk 0:02:38]} 18. Bxf5 {[%clk 0:02:34]}  Nxf5 {[%clk 0:02:39]} 19. Qd2 {[%clk 0:02:32]}  Re8 {[%clk 0:02:37]} 20. Re1 {[%clk 0:02:31]}  Rxe1+ {[%clk 0:02:34]} 21. Nxe1 {[%clk 0:02:32]}  Qa6 {[%clk 0:02:28]} 22. a3 {[%clk 0:02:26]}  Qc4 {[%clk 0:02:25]} 23. Nd3 {[%clk 0:02:24]}  h5 {[%clk 0:02:22]} 24. Kh2 {[%clk 0:02:19]}  Qa2 {[%clk 0:02:14]} 25. Bb8 {[%clk 0:02:17]}  a6 {[%clk 0:02:11]} 26. Qe2 {[%clk 0:02:15]}  Ng7 {[%clk 0:02:02]} 27. Qf3 {[%clk 0:02:07]}  Be7 {[%clk 0:01:35]} 28. Ne5 {[%clk 0:02:03]}  Nf5 {[%clk 0:01:32]} 29. Nd3 {[%clk 0:01:50]}  Qb1 {[%clk 0:01:26]} 30. Be5 {[%clk 0:01:47]}  h4 {[%clk 0:01:18]} 31. Qe2 {[%clk 0:01:42]}  Bg5 {[%clk 0:01:15]} 32. Bf4 {[%clk 0:01:38]}  Bf6 {[%clk 0:01:12]} 33. Be5 {[%clk 0:01:35]}  Be7 {[%clk 0:01:07]} 34. Bf4 {[%clk 0:01:32]}  Bf8 {[%clk 0:01:06]} 35. Bg5 {[%clk 0:01:30]}  Bd6+ {[%clk 0:01:05]} 36. Bf4 {[%clk 0:01:27]}  Bxf4+ {[%clk 0:00:48]} 37. Nxf4 {[%clk 0:01:27]}  Qe4 {[%clk 0:00:48]} 38. Qg4 {[%clk 0:01:11]}  Kh7 {[%clk 0:00:36]} 39. Qg5 {[%clk 0:00:55]}  a5 {[%clk 0:00:34]} 40. Qg4 {[%clk 0:00:45]}  Kh6 {[%clk 0:00:25]} 41. Ne2 {[%clk 0:00:39]}  Qxg4 {[%clk 0:00:20]} 42. hxg4 {[%clk 0:00:40]}  Nd6 {[%clk 0:00:20]} 43. b3 {[%clk 0:00:40]}  a4 {[%clk 0:00:17]} 44. bxa4 {[%clk 0:00:38]}  g5 {[%clk 0:00:14]} 45. g3 {[%clk 0:00:36]}  hxg3+ {[%clk 0:00:14]} 46. Nxg3 {[%clk 0:00:35]}  Nc4 {[%clk 0:00:14]} 47. Nf5+ {[%clk 0:00:34]}  Kg6 {[%clk 0:00:14]} 48. Kg3 {[%clk 0:00:33]}  Nxa3 {[%clk 0:00:14]} 49. Nd6 {[%clk 0:00:34]}  Nb1 {[%clk 0:00:07]} 50. Nxb7 {[%clk 0:00:31]}  Nxc3 {[%clk 0:00:07]} 51. a5 {[%clk 0:00:30]}  Ne2+ {[%clk 0:00:08]} 52. Kg2 {[%clk 0:00:29]}  Nxd4 {[%clk 0:00:09]} 53. a6 {[%clk 0:00:28]}  Nb5 {[%clk 0:00:09]} 54. Na5 {[%clk 0:00:25]}  Na7 {[%clk 0:00:09]} 55. Nb3 {[%clk 0:00:24]}  Kf6 {[%clk 0:00:08]} 56. Kf3 {[%clk 0:00:23]}  Ke5 {[%clk 0:00:08]} 57. Ke3 {[%clk 0:00:24]}  Kd6 {[%clk 0:00:05]} 58. Kd4 {[%clk 0:00:23]}  Nb5+ {[%clk 0:00:05]} 59. Kd3 {[%clk 0:00:22]}  c5 {[%clk 0:00:06]} 60. Nd2 {[%clk 0:00:19]}  Kc6 {[%clk 0:00:05]} 61. Ke3 {[%clk 0:00:15]}  Kb6 {[%clk 0:00:04]} 62. f4 {[%clk 0:00:16]}  f6 {[%clk 0:00:02]} 63. fxg5 {[%clk 0:00:16]}  fxg5 {[%clk 0:00:02]} 64. Nf3 {[%clk 0:00:17]}  Kxa6 {[%clk 0:00:01]} 65. Nxg5 {[%clk 0:00:17]}  d4+ {[%clk 0:00:02]} 66. Ke4 {[%clk 0:00:17]}  Ka5 {[%clk 0:00:02]} 67. Ne6 {[%clk 0:00:18]}  Kb4 {[%clk 0:00:03]} 68. g5 {[%clk 0:00:18]}  Nd6+ {[%clk 0:00:03]} 69. Kd5 {[%clk 0:00:17]}  Nf5 {[%clk 0:00:03]} 70. Ke4 {[%clk 0:00:17]}  Nd6+ {[%clk 0:00:03]} 71. Kd5 {[%clk 0:00:17]}  d3 {[%clk 0:00:04]} 72. Nf4 {[%clk 0:00:15]}  d2 {[%clk 0:00:04]} 73. Nd3+ {[%clk 0:00:13]}  Kb5 {[%clk 0:00:02]} 74. Nf2 {[%clk 0:00:14]}  Nf7 {[%clk 0:00:03]} 75. g6 {[%clk 0:00:13]}  Nh6 {[%clk 0:00:03]} 76. g7 {[%clk 0:00:14]}  c4 {[%clk 0:00:04]} 77. Kd4 {[%clk 0:00:15]}  Kb4 {[%clk 0:00:04]} 78. Nd1 {[%clk 0:00:13]}  Kb3 {[%clk 0:00:04]} 79. Ke3 {[%clk 0:00:10]}  c3 {[%clk 0:00:04]} 80. Ke2 {[%clk 0:00:11]}  c2 {[%clk 0:00:04]} 81. Kxd2 {[%clk 0:00:11]}  Ng8 {[%clk 0:00:04]} 82. Ne3 {[%clk 0:00:10]}  Nf6 {[%clk 0:00:04]} 83. Nxc2 {[%clk 0:00:10]}  Kc4 {[%clk 0:00:04]} 84. Ke3 {[%clk 0:00:08]}  Ng8 {[%clk 0:00:04]} 85. Ke4 {[%clk 0:00:08]}  Kc5 {[%clk 0:00:03]} 86. Ke5 {[%clk 0:00:09]}  Kc6 {[%clk 0:00:02]} 87. Ke6 {[%clk 0:00:09]}  Nh6 {[%clk 0:00:02]} 88. Ne3 {[%clk 0:00:08]}  Kc7 {[%clk 0:00:03]} 89. Ke7 {[%clk 0:00:08]}  Kc6 {[%clk 0:00:03]} 90. Ke6 {[%clk 0:00:06]}  Kc7 {[%clk 0:00:02]} 91. Nf5 {[%clk 0:00:07]}  Ng8 {[%clk 0:00:02]} 92. Kf7 {[%clk 0:00:07]}  Kd7 {[%clk 0:00:01]} 93. Kxg8 {[%clk 0:00:07]}  Ke6 {[%clk 0:00:02]} 94. Kf8 {[%clk 0:00:07]}  Kf6 {[%clk 0:00:02]} 95. g8=Q {[%clk 0:00:08]}  Ke5 {[%clk 0:00:02]} 96. Qf7 {[%clk 0:00:07]} 1-0


[Site "https://www.chess.com"]

[Event "Titled Tuesday Blitz January 17 Early 2023"]
[White "Dixit, Nikhil"]
[Black "Szyszylo, Rafal"]
[WhiteFideId "5059534"]
[BlackFideId "1109626"]
[WhiteElo "2257"]
[BlackElo "2091"]
[Result "1/2-1/2"]
[Round "05"]
[TimeControl "180+2"]
[Date "2023.01.17"]
[WhiteClock "0:00:43"]
[BlackClock "0:00:08"]

1. e4 {[%clk 0:03:00]}  g6 {[%clk 0:02:59]} 2. d4 {[%clk 0:02:57]}  d6 {[%clk 0:02:59]} 3. Nc3 {[%clk 0:02:58]}  Nf6 {[%clk 0:02:58]} 4. Nf3 {[%clk 0:02:58]}  Bg7 {[%clk 0:02:58]} 5. Be2 {[%clk 0:02:59]}  O-O {[%clk 0:02:57]} 6. O-O {[%clk 0:02:59]}  Bg4 {[%clk 0:02:57]} 7. Be3 {[%clk 0:02:57]}  Bxf3 {[%clk 0:02:56]} 8. Bxf3 {[%clk 0:02:58]}  e5 {[%clk 0:02:57]} 9. dxe5 {[%clk 0:02:58]}  dxe5 {[%clk 0:02:57]} 10. Qxd8 {[%clk 0:02:58]}  Rxd8 {[%clk 0:02:58]} 11. Rfd1 {[%clk 0:02:59]}  Nc6 {[%clk 0:02:57]} 12. Nd5 {[%clk 0:02:57]}  Nxd5 {[%clk 0:02:56]} 13. exd5 {[%clk 0:02:57]}  Nd4 {[%clk 0:02:57]} 14. Bxd4 {[%clk 0:02:57]}  exd4 {[%clk 0:02:58]} 15. Kf1 {[%clk 0:02:54]}  Re8 {[%clk 0:02:58]} 16. Rd3 {[%clk 0:02:53]}  Rac8 {[%clk 0:02:40]} 17. Rad1 {[%clk 0:02:36]}  c5 {[%clk 0:02:39]} 18. dxc6 {[%clk 0:02:36]}  bxc6 {[%clk 0:02:39]} 19. Ra3 {[%clk 0:02:37]}  Rc7 {[%clk 0:02:37]} 20. b3 {[%clk 0:02:35]}  c5 {[%clk 0:02:32]} 21. Ra6 {[%clk 0:02:32]}  Re6 {[%clk 0:02:25]} 22. Rxe6 {[%clk 0:02:30]}  fxe6 {[%clk 0:02:25]} 23. Be2 {[%clk 0:02:25]}  Kf7 {[%clk 0:02:21]} 24. Bc4 {[%clk 0:02:24]}  Ke7 {[%clk 0:02:22]} 25. Re1 {[%clk 0:02:23]}  e5 {[%clk 0:02:22]} 26. Re4 {[%clk 0:02:22]}  Kd6 {[%clk 0:02:18]} 27. Ke2 {[%clk 0:02:22]}  Bf6 {[%clk 0:02:18]} 28. h4 {[%clk 0:02:17]}  h6 {[%clk 0:02:14]} 29. g3 {[%clk 0:02:17]}  g5 {[%clk 0:02:13]} 30. hxg5 {[%clk 0:02:16]}  hxg5 {[%clk 0:02:14]} 31. f4 {[%clk 0:02:08]}  gxf4 {[%clk 0:02:10]} 32. gxf4 {[%clk 0:02:09]}  Rh7 {[%clk 0:02:01]} 33. fxe5+ {[%clk 0:02:07]}  Bxe5 {[%clk 0:02:01]} 34. Bd3 {[%clk 0:02:07]}  Rh2+ {[%clk 0:02:00]} 35. Kd1 {[%clk 0:02:07]}  Rh1+ {[%clk 0:01:53]} 36. Kd2 {[%clk 0:02:07]}  Rh2+ {[%clk 0:01:44]} 37. Kc1 {[%clk 0:02:06]}  Rh1+ {[%clk 0:01:44]} 38. Kb2 {[%clk 0:02:05]}  Rg1 {[%clk 0:01:14]} 39. Rh4 {[%clk 0:02:00]}  Rg2 {[%clk 0:01:11]} 40. Ka3 {[%clk 0:01:56]}  Rg7 {[%clk 0:01:05]} 41. Rh6+ {[%clk 0:01:54]}  Kc7 {[%clk 0:01:04]} 42. Ka4 {[%clk 0:01:53]}  Bf4 {[%clk 0:00:51]} 43. Rf6 {[%clk 0:01:50]}  Bd2 {[%clk 0:00:50]} 44. Kb5 {[%clk 0:01:44]}  Bb4 {[%clk 0:00:49]} 45. a4 {[%clk 0:01:41]}  a5 {[%clk 0:00:48]} 46. Rc6+ {[%clk 0:01:20]}  Kd7 {[%clk 0:00:48]} 47. Bf5+ {[%clk 0:01:19]}  Ke7 {[%clk 0:00:46]} 48. Bd3 {[%clk 0:01:14]}  Kd7 {[%clk 0:00:45]} 49. Rb6 {[%clk 0:01:13]}  Kc7 {[%clk 0:00:45]} 50. Ra6 {[%clk 0:01:12]}  Re7 {[%clk 0:00:39]} 51. Kc4 {[%clk 0:01:06]}  Rd7 {[%clk 0:00:36]} 52. Rg6 {[%clk 0:01:04]}  Rd6 {[%clk 0:00:36]} 53. Rg7+ {[%clk 0:01:03]}  Kd8 {[%clk 0:00:36]} 54. Rb7 {[%clk 0:01:00]}  Kc8 {[%clk 0:00:36]} 55. Ra7 {[%clk 0:01:00]}  Kb8 {[%clk 0:00:36]} 56. Rh7 {[%clk 0:01:00]}  Kc8 {[%clk 0:00:36]} 57. Bf5+ {[%clk 0:01:00]}  Kb8 {[%clk 0:00:36]} 58. Be4 {[%clk 0:00:57]}  Kc8 {[%clk 0:00:36]} 59. Kb5 {[%clk 0:00:57]}  Kd8 {[%clk 0:00:35]} 60. Bc6 {[%clk 0:00:51]}  d3 {[%clk 0:00:30]} 61. cxd3 {[%clk 0:00:50]}  Rxd3 {[%clk 0:00:31]} 62. Rh8+ {[%clk 0:00:49]}  Ke7 {[%clk 0:00:29]} 63. Rh7+ {[%clk 0:00:49]}  Kd8 {[%clk 0:00:27]} 64. Rf7 {[%clk 0:00:26]}  Rxb3 {[%clk 0:00:22]} 65. Bd5 {[%clk 0:00:26]}  Re3 {[%clk 0:00:21]} 66. Kc6 {[%clk 0:00:26]}  Re7 {[%clk 0:00:18]} 67. Rf8+ {[%clk 0:00:26]}  Re8 {[%clk 0:00:19]} 68. Rf7 {[%clk 0:00:26]}  Re7 {[%clk 0:00:19]} 69. Rf8+ {[%clk 0:00:20]}  Re8 {[%clk 0:00:19]} 70. Rxe8+ {[%clk 0:00:21]}  Kxe8 {[%clk 0:00:19]} 71. Bc4 {[%clk 0:00:22]}  Ke7 {[%clk 0:00:19]} 72. Kd5 {[%clk 0:00:23]}  Kf6 {[%clk 0:00:19]} 73. Bb5 {[%clk 0:00:24]}  Kf5 {[%clk 0:00:19]} 74. Kc4 {[%clk 0:00:24]}  Ke4 {[%clk 0:00:20]} 75. Bc6+ {[%clk 0:00:24]}  Ke3 {[%clk 0:00:20]} 76. Bb5 {[%clk 0:00:25]}  Kd2 {[%clk 0:00:20]} 77. Bc6 {[%clk 0:00:26]}  Kc2 {[%clk 0:00:21]} 78. Bb5 {[%clk 0:00:27]}  Kb2 {[%clk 0:00:21]} 79. Bc6 {[%clk 0:00:28]}  Ka3 {[%clk 0:00:22]} 80. Bb5 {[%clk 0:00:29]}  Kb2 {[%clk 0:00:23]} 81. Bc6 {[%clk 0:00:30]}  Kc2 {[%clk 0:00:23]} 82. Bb5 {[%clk 0:00:31]}  Kd2 {[%clk 0:00:23]} 83. Bc6 {[%clk 0:00:32]}  Ke3 {[%clk 0:00:24]} 84. Bb5 {[%clk 0:00:32]}  Kf4 {[%clk 0:00:24]} 85. Bc6 {[%clk 0:00:33]}  Ke5 {[%clk 0:00:25]} 86. Bb5 {[%clk 0:00:34]}  Kd6 {[%clk 0:00:26]} 87. Be8 {[%clk 0:00:34]}  Ke7 {[%clk 0:00:26]} 88. Bb5 {[%clk 0:00:34]}  Kd8 {[%clk 0:00:27]} 89. Ba6 {[%clk 0:00:35]}  Kc7 {[%clk 0:00:28]} 90. Bb5 {[%clk 0:00:36]}  Kb6 {[%clk 0:00:28]} 91. Kb3 {[%clk 0:00:37]}  Bd2 {[%clk 0:00:26]} 92. Kc4 {[%clk 0:00:38]}  Bf4 {[%clk 0:00:26]} 93. Kb3 {[%clk 0:00:38]}  Bg3 {[%clk 0:00:26]} 94. Kc4 {[%clk 0:00:39]}  Bf2 {[%clk 0:00:27]} 95. Kd5 {[%clk 0:00:40]}  Kc7 {[%clk 0:00:26]} 96. Kc4 {[%clk 0:00:41]}  Be3 {[%clk 0:00:25]} 97. Kd5 {[%clk 0:00:42]}  Bd4 {[%clk 0:00:25]} 98. Kc4 {[%clk 0:00:43]}  Kb6 {[%clk 0:00:25]} 99. Kd5 {[%clk 0:00:43]}  Kc7 {[%clk 0:00:18]} 100. Kc4 {[%clk 0:00:44]}  Kd6 {[%clk 0:00:18]} 101. Ba6 {[%clk 0:00:36]}  Bf2 {[%clk 0:00:14]} 102. Bb5 {[%clk 0:00:37]}  Ke5 {[%clk 0:00:11]} 103. Ba6 {[%clk 0:00:37]}  Be3 {[%clk 0:00:11]} 104. Bb5 {[%clk 0:00:38]}  Kd6 {[%clk 0:00:10]} 105. Kd3 {[%clk 0:00:38]}  Bd4 {[%clk 0:00:06]} 106. Ke4 {[%clk 0:00:38]}  Bc3 {[%clk 0:00:05]} 107. Bc4 {[%clk 0:00:38]}  Bb4 {[%clk 0:00:06]} 108. Bd3 {[%clk 0:00:38]}  Ba3 {[%clk 0:00:07]} 109. Bc4 {[%clk 0:00:38]}  Bb4 {[%clk 0:00:08]} 110. Kd3 {[%clk 0:00:38]}  Ba3 {[%clk 0:00:08]} 111. Kc2 {[%clk 0:00:39]}  Bb4 {[%clk 0:00:09]} 112. Kb3 {[%clk 0:00:39]}  Ke5 {[%clk 0:00:10]} 113. Bb5 {[%clk 0:00:40]}  Kd4 {[%clk 0:00:11]} 114. Bc4 {[%clk 0:00:40]}  Ke3 {[%clk 0:00:10]} 115. Bb5 {[%clk 0:00:41]}  Kd4 {[%clk 0:00:09]} 116. Bc4 {[%clk 0:00:42]}  Bc3 {[%clk 0:00:08]} 117. Bb5 {[%clk 0:00:43]}  Bb4 {[%clk 0:00:08]} 1/2-1/2


[Site "https://www.chess.com"]

[Event "Titled Tuesday Blitz January 17 Early 2023"]
[White "Papayan, Oleg"]
[Black "Malyi, Viacheslav"]
[WhiteFideId "4193911"]
[BlackFideId "14123983"]
[WhiteElo "2253"]
[BlackElo "2391"]
[Result "1-0"]
[Round "05"]
[TimeControl "180+2"]
[Date "2023.01.17"]
[WhiteClock "0:00:20"]
[BlackClock "0:00:11"]

1. e4 {[%clk 0:02:58]}  e5 {[%clk 0:02:59]} 2. Nf3 {[%clk 0:02:58]}  Nc6 {[%clk 0:02:59]} 3. Bb5 {[%clk 0:02:58]}  a6 {[%clk 0:02:59]} 4. Bxc6 {[%clk 0:02:59]}  dxc6 {[%clk 0:02:58]} 5. Nc3 {[%clk 0:03:00]}  f6 {[%clk 0:02:57]} 6. d4 {[%clk 0:03:00]}  exd4 {[%clk 0:02:57]} 7. Qxd4 {[%clk 0:03:01]}  Qxd4 {[%clk 0:02:57]} 8. Nxd4 {[%clk 0:03:02]}  Bd7 {[%clk 0:02:58]} 9. Be3 {[%clk 0:03:03]}  O-O-O {[%clk 0:02:58]} 10. O-O-O {[%clk 0:03:03]}  c5 {[%clk 0:02:54]} 11. Nde2 {[%clk 0:03:00]}  b6 {[%clk 0:02:52]} 12. Bf4 {[%clk 0:02:57]}  Ne7 {[%clk 0:02:51]} 13. Bg3 {[%clk 0:02:52]}  f5 {[%clk 0:02:39]} 14. Rhe1 {[%clk 0:02:06]}  fxe4 {[%clk 0:02:34]} 15. Nxe4 {[%clk 0:02:06]}  Nf5 {[%clk 0:02:34]} 16. Ng5 {[%clk 0:01:58]}  Re8 {[%clk 0:02:23]} 17. Nf4 {[%clk 0:01:47]}  Rxe1 {[%clk 0:02:17]} 18. Rxe1 {[%clk 0:01:47]}  Nxg3 {[%clk 0:02:02]} 19. hxg3 {[%clk 0:01:45]}  Bd6 {[%clk 0:01:51]} 20. Nf7 {[%clk 0:01:44]}  Bxf4+ {[%clk 0:01:47]} 21. gxf4 {[%clk 0:01:45]}  Rf8 {[%clk 0:01:47]} 22. Re7 {[%clk 0:01:45]}  h6 {[%clk 0:01:29]} 23. Ne5 {[%clk 0:01:28]}  Be8 {[%clk 0:01:08]} 24. Rxg7 {[%clk 0:01:21]}  Rxf4 {[%clk 0:01:07]} 25. f3 {[%clk 0:01:14]}  h5 {[%clk 0:01:06]} 26. Rg8 {[%clk 0:01:02]}  Kd8 {[%clk 0:01:06]} 27. Nc6+ {[%clk 0:00:59]}  Kd7 {[%clk 0:01:05]} 28. Nb8+ {[%clk 0:00:59]}  Ke7 {[%clk 0:01:05]} 29. Nxa6 {[%clk 0:00:59]}  c6 {[%clk 0:01:01]} 30. Rg7+ {[%clk 0:00:40]}  Bf7 {[%clk 0:01:00]} 31. Nb8 {[%clk 0:00:35]}  Kf6 {[%clk 0:00:55]} 32. Rh7 {[%clk 0:00:32]}  Kg6 {[%clk 0:00:41]} 33. Rh8 {[%clk 0:00:31]}  Bd5 {[%clk 0:00:39]} 34. Nd7 {[%clk 0:00:28]}  Rh4 {[%clk 0:00:37]} 35. Re8 {[%clk 0:00:20]}  Rh2 {[%clk 0:00:30]} 36. Re2 {[%clk 0:00:21]}  h4 {[%clk 0:00:29]} 37. Kd2 {[%clk 0:00:19]}  Rh1 {[%clk 0:00:25]} 38. c4 {[%clk 0:00:20]}  Bg8 {[%clk 0:00:21]} 39. Nxb6 {[%clk 0:00:20]}  Kf5 {[%clk 0:00:20]} 40. Nd7 {[%clk 0:00:20]}  Bxc4 {[%clk 0:00:18]} 41. Re5+ {[%clk 0:00:20]}  Kg6 {[%clk 0:00:15]} 42. Rxc5 {[%clk 0:00:21]}  Bxa2 {[%clk 0:00:12]} 43. Rxc6+ {[%clk 0:00:22]}  Kg5 {[%clk 0:00:12]} 44. Ne5 {[%clk 0:00:21]}  Kf4 {[%clk 0:00:13]} 45. Nd3+ {[%clk 0:00:21]}  Kg3 {[%clk 0:00:12]} 46. Rg6+ {[%clk 0:00:21]}  Kh2 {[%clk 0:00:11]} 47. Rg4 {[%clk 0:00:19]}  h3 {[%clk 0:00:10]} 48. gxh3 {[%clk 0:00:19]}  Kxh3 {[%clk 0:00:11]} 49. Nf2+ {[%clk 0:00:20]} 1-0


[Site "https://www.chess.com"]

[Event "Titled Tuesday Blitz January 17 Early 2023"]
[White "Aldokhin, Ivan"]
[Black "Buscar, Michael"]
[WhiteFideId "24115720"]
[BlackFideId "2603616"]
[WhiteElo "2413"]
[BlackElo "2041"]
[Result "1-0"]
[Round "05"]
[TimeControl "180+2"]
[Date "2023.01.17"]
[WhiteClock "0:00:14"]
[BlackClock "0:00:21"]

1. e4 {[%clk 0:03:00]}  c5 {[%clk 0:02:46]} 2. Nf3 {[%clk 0:03:00]}  Nc6 {[%clk 0:02:46]} 3. d4 {[%clk 0:03:01]}  cxd4 {[%clk 0:02:46]} 4. Nxd4 {[%clk 0:03:02]}  Nf6 {[%clk 0:02:47]} 5. Nc3 {[%clk 0:03:00]}  e5 {[%clk 0:02:48]} 6. Ndb5 {[%clk 0:03:00]}  h6 {[%clk 0:02:48]} 7. Nd5 {[%clk 0:03:00]}  Nxd5 {[%clk 0:02:48]} 8. exd5 {[%clk 0:03:01]}  a6 {[%clk 0:02:49]} 9. Na3 {[%clk 0:02:14]}  Nb8 {[%clk 0:02:40]} 10. d6 {[%clk 0:01:57]}  b5 {[%clk 0:02:26]} 11. Be3 {[%clk 0:01:48]}  Qf6 {[%clk 0:02:21]} 12. Bc5 {[%clk 0:01:47]}  Bb7 {[%clk 0:02:13]} 13. c4 {[%clk 0:01:38]}  e4 {[%clk 0:01:52]} 14. cxb5 {[%clk 0:00:55]}  Qxb2 {[%clk 0:01:48]} 15. Rc1 {[%clk 0:00:55]}  Qxa2 {[%clk 0:01:22]} 16. Bc4 {[%clk 0:00:55]}  Qb2 {[%clk 0:01:18]} 17. O-O {[%clk 0:00:54]}  axb5 {[%clk 0:01:01]} 18. Nxb5 {[%clk 0:00:26]}  Na6 {[%clk 0:00:59]} 19. Rb1 {[%clk 0:00:25]}  Qe5 {[%clk 0:00:35]} 20. Bd4 {[%clk 0:00:20]}  Qg5 {[%clk 0:00:35]} 21. f4 {[%clk 0:00:16]}  exf3 {[%clk 0:00:21]} 22. Qe1+ {[%clk 0:00:15]}  Kd8 {[%clk 0:00:21]} 23. Bb6+ {[%clk 0:00:14]} 1-0


[Site "https://www.chess.com"]

[Event "Titled Tuesday Blitz January 17 Early 2023"]
[White "Garakov, Mikhael"]
[Black "Rian, Kapriaga"]
[WhiteFideId "4169034"]
[BlackFideId "7103263"]
[WhiteElo "2447"]
[BlackElo "2089"]
[Result "1-0"]
[Round "05"]
[TimeControl "180+2"]
[Date "2023.01.17"]
[WhiteClock "0:00:58"]
[BlackClock "0:00:08"]

1. e4 {[%clk 0:03:00]}  c6 {[%clk 0:02:59]} 2. d4 {[%clk 0:03:00]}  d5 {[%clk 0:02:59]} 3. exd5 {[%clk 0:02:59]}  cxd5 {[%clk 0:02:58]} 4. c4 {[%clk 0:02:59]}  Nf6 {[%clk 0:02:57]} 5. Nc3 {[%clk 0:03:00]}  Nc6 {[%clk 0:02:54]} 6. Nf3 {[%clk 0:03:00]}  Bg4 {[%clk 0:02:54]} 7. cxd5 {[%clk 0:02:58]}  Nxd5 {[%clk 0:02:54]} 8. Qb3 {[%clk 0:02:58]}  Bxf3 {[%clk 0:02:40]} 9. gxf3 {[%clk 0:02:58]}  Nb6 {[%clk 0:02:39]} 10. d5 {[%clk 0:02:58]}  Nd4 {[%clk 0:02:36]} 11. Qd1 {[%clk 0:02:57]}  e5 {[%clk 0:02:33]} 12. dxe6 {[%clk 0:02:55]}  fxe6 {[%clk 0:02:26]} 13. Be3 {[%clk 0:02:51]}  e5 {[%clk 0:02:13]} 14. f4 {[%clk 0:02:50]}  Bc5 {[%clk 0:01:52]} 15. Qh5+ {[%clk 0:02:49]}  Kf8 {[%clk 0:01:39]} 16. O-O-O {[%clk 0:02:36]}  exf4 {[%clk 0:00:53]} 17. Qxc5+ {[%clk 0:02:34]}  Qe7 {[%clk 0:00:48]} 18. Bxd4 {[%clk 0:02:27]}  Qxc5 {[%clk 0:00:34]} 19. Bxc5+ {[%clk 0:02:27]}  Kf7 {[%clk 0:00:35]} 20. Bxb6 {[%clk 0:02:22]}  axb6 {[%clk 0:00:35]} 21. Rd7+ {[%clk 0:02:22]}  Kf6 {[%clk 0:00:33]} 22. Rxb7 {[%clk 0:02:23]}  Rhc8 {[%clk 0:00:31]} 23. Rxb6+ {[%clk 0:02:22]}  Ke5 {[%clk 0:00:30]} 24. Bg2 {[%clk 0:02:18]}  Rxa2 {[%clk 0:00:25]} 25. Re1+ {[%clk 0:02:16]}  Kf5 {[%clk 0:00:25]} 26. Bh3+ {[%clk 0:02:16]}  Kg5 {[%clk 0:00:23]} 27. Bxc8 {[%clk 0:02:14]}  Ra1+ {[%clk 0:00:23]} 28. Kd2 {[%clk 0:02:13]}  Ra8 {[%clk 0:00:21]} 29. Re5+ {[%clk 0:02:08]}  Kh4 {[%clk 0:00:20]} 30. Rc5 {[%clk 0:02:07]}  h5 {[%clk 0:00:18]} 31. Ne4 {[%clk 0:02:06]}  g5 {[%clk 0:00:17]} 32. Nxg5 {[%clk 0:02:04]}  Rxc8 {[%clk 0:00:12]} 33. Rxc8 {[%clk 0:01:20]}  f3 {[%clk 0:00:09]} 34. Rc5 {[%clk 0:01:03]}  Kg4 {[%clk 0:00:08]} 35. Rb4# {[%clk 0:00:58]} 1-0


[Site "https://www.chess.com"]

[Event "Titled Tuesday Blitz January 17 Early 2023"]
[White "Fathy, Elameir"]
[Black "Padmini, Rout"]
[WhiteFideId "10600396"]
[BlackFideId "5029295"]
[WhiteElo "2300"]
[BlackElo "2375"]
[Result "0-1"]
[Round "05"]
[TimeControl "180+2"]
[Date "2023.01.17"]
[WhiteClock "0:00:04"]
[BlackClock "0:01:41"]

1. d4 {[%clk 0:03:00]}  Nf6 {[%clk 0:02:58]} 2. c4 {[%clk 0:03:01]}  g6 {[%clk 0:02:57]} 3. Nc3 {[%clk 0:03:01]}  Bg7 {[%clk 0:02:57]} 4. e4 {[%clk 0:03:01]}  d6 {[%clk 0:02:58]} 5. Nf3 {[%clk 0:03:01]}  O-O {[%clk 0:02:58]} 6. Be2 {[%clk 0:03:02]}  e5 {[%clk 0:02:57]} 7. d5 {[%clk 0:03:02]}  a5 {[%clk 0:02:56]} 8. Bg5 {[%clk 0:03:02]}  Nbd7 {[%clk 0:02:56]} 9. Nd2 {[%clk 0:02:59]}  c6 {[%clk 0:02:47]} 10. a3 {[%clk 0:02:55]}  Qb6 {[%clk 0:02:43]} 11. Na4 {[%clk 0:02:37]}  Qc7 {[%clk 0:02:42]} 12. b4 {[%clk 0:02:14]}  b5 {[%clk 0:02:35]} 13. dxc6 {[%clk 0:02:00]}  bxa4 {[%clk 0:02:34]} 14. cxd7 {[%clk 0:02:01]}  Nxd7 {[%clk 0:02:24]} 15. Qxa4 {[%clk 0:01:48]}  Bb7 {[%clk 0:02:22]} 16. Qd1 {[%clk 0:01:24]}  f5 {[%clk 0:02:17]} 17. O-O {[%clk 0:00:37]}  h6 {[%clk 0:02:13]} 18. Be7 {[%clk 0:00:11]}  Rf7 {[%clk 0:02:10]} 19. Bh4 {[%clk 0:00:10]}  g5 {[%clk 0:02:08]} 20. Bh5 {[%clk 0:00:11]}  Rf6 {[%clk 0:02:03]} 21. exf5 {[%clk 0:00:03]}  gxh4 {[%clk 0:02:03]} 22. Bf3 {[%clk 0:00:01]}  Rxf5 {[%clk 0:02:02]} 23. Bxb7 {[%clk 0:00:01]}  Qxb7 {[%clk 0:02:03]} 24. Qe2 {[%clk 0:00:01]}  Nf6 {[%clk 0:02:02]} 25. f3 {[%clk 0:00:01]}  Nh5 {[%clk 0:02:00]} 26. Rfb1 {[%clk 0:00:01]}  Nf4 {[%clk 0:01:59]} 27. Qe4 {[%clk 0:00:02]}  Qxe4 {[%clk 0:01:57]} 28. Nxe4 {[%clk 0:00:03]}  d5 {[%clk 0:01:52]} 29. cxd5 {[%clk 0:00:03]}  Nxd5 {[%clk 0:01:52]} 30. b5 {[%clk 0:00:04]}  Rff8 {[%clk 0:01:48]} 31. Rd1 {[%clk 0:00:04]}  Rfd8 {[%clk 0:01:47]} 32. a4 {[%clk 0:00:04]}  Kf7 {[%clk 0:01:46]} 33. Rac1 {[%clk 0:00:05]}  Bf8 {[%clk 0:01:42]} 34. Kf1 {[%clk 0:00:04]}  Ne3+ {[%clk 0:01:41]} 0-1


[Site "https://www.chess.com"]